bitfinex-derivatives/quotes_SOLF0:USTF0_20241029
["timestamp","ask_amount","ask_price","bid_price","bid_amount"]
[1730235666438,4.76,178.62,178.5,8.60824023]
[1730235666439,8.60824023,178.54,178.5,8.60824023]
[1730235666834,8.60824023,178.53,178.49,4.76]
[1730235669136,8.60824023,178.53,178.48,249.46994067]
[1730235669747,8.60824023,178.52,178.48,238.06000044]
[1730235670037,8.60824023,178.51,178.47,4.76]
[1730235670246,8.60824023,178.51,178.46,8.60824023]
[1730235670439,5.3574,178.56,178.44,8.60824023]
[1730235670440,2.8019,178.48,178.44,8.60824023]
[1730235670644,8.60824023,178.49,178.44,8.60824023]
[1730235671033,8.60824023,178.49,178.44,11.41054023]
[1730235675135,2.76117733,178.53,178.44,8.60824023]
[1730235675136,8.60824023,178.48,178.44,8.60824023]
[1730235675336,8.60824023,178.48,178.38,62.159]
[1730235675337,8.60824023,178.47,178.42,8.60824023]
[1730235675541,4.76,178.52,178.45,8.60824023]
[1730235675840,8.60824023,178.5,178.45,8.60824023]
[1730235676044,11.40974023,178.5,178.46,8.60824023]
[1730235682748,11.40974023,178.5,178.45,11.41044023]
[1730235683644,8.60824023,178.49,178.45,11.41044023]
[1730235685447,8.60824023,178.5,178.45,8.60824023]
[1730235685656,8.60824023,178.54,178.49,8.60824023]
[1730235685857,8.60824023,178.53,178.49,8.60824023]
[1730235686058,8.60824023,178.53,178.49,2.8015]
[1730235686554,8.60824023,178.53,178.49,11.40974023]
[1730235686749,8.60824023,178.53,178.49,2.8015]
[1730235687058,8.60824023,178.53,178.46,4.76]
[1730235687351,8.60824023,178.52,178.47,16.17014023]
[1730235688659,8.60824023,178.52,178.47,11.41014023]
[1730235689051,11.40964023,178.51,178.46,16.17024023]
[1730235690364,2.8016,178.5,178.45,7.5622]
[1730235690662,2.8016,178.5,178.45,16.17044023]
[1730235692052,2.8016,178.5,178.45,11.41044023]
[1730235694256,8.60824023,178.49,178.42,1.786]
[1730235694557,4.76,178.53,178.42,11.41094023]
[1730235694558,8.60824023,178.46,178.42,11.41094023]
[1730235694862,8.60824023,178.46,178.42,8.60824023]
[1730235695052,8.60824023,178.46,178.43,2.8026]
[1730235695449,8.60824023,178.46,178.42,8.60824023]
[1730235695653,8.60824023,178.47,178.43,2.8026]
[1730235695860,8.60824023,178.47,178.43,8.60824023]
[1730235696052,4.76,178.53,178.44,11.41064023]
[1730235696053,8.60824023,178.49,178.44,11.41064023]
[1730235696656,8.60824023,178.49,178.44,8.60824023]
[1730235696856,8.60824023,178.51,178.46,8.60824023]
[1730235697555,11.40954023,178.51,178.46,8.60824023]
[1730235699468,11.40954023,178.51,178.46,8.60824023]
[1730235700766,8.60824023,178.5,178.45,2.8022]
[1730235702270,2.8017,178.49,178.44,8.60824023]
[1730235702468,8.60824023,178.5,178.44,8.60824023]
[1730235702864,11.40984023,178.5,178.45,2.8022]
[1730235704270,8.60824023,178.49,178.45,2.8022]
[1730235707073,8.60824023,178.49,178.45,11.41044023]
[1730235708473,8.60824023,178.49,178.45,2.8022]
[1730235708675,8.60824023,178.49,178.45,11.41044023]
[1730235709268,8.60824023,178.47,178.41,2.8028]
[1730235709472,8.60824023,178.47,178.43,8.60824023]
[1730235709970,13.27034023,178.48,178.43,8.60824023]
[1730235710975,13.27034023,178.48,178.4,4.74]
[1730235711281,8.60824023,178.47,178.43,8.60824023]
[1730235711772,1.8602,178.48,178.46,8.60824023]
[1730235711974,13.34824023,178.52,178.47,8.60824023]
[1730235712177,13.34824023,178.52,178.4,4.74]
[1730235712178,16.14954023,178.52,178.46,11.41024023]
[1730235712676,2.8013,178.51,178.46,2.802]
[1730235712878,8.60824023,178.5,178.46,2.802]
[1730235713475,8.60824023,178.5,178.45,11.41044023]
[1730235715177,8.60824023,178.46,178.41,8.60824023]
[1730235715372,8.60824023,178.47,178.43,8.60824023]
[1730235715574,8.60824023,178.47,178.4,4.74]
[1730235715773,8.60824023,178.41,178.39,2.27108442]
[1730235715973,8.60824023,178.4,178.39,2.27108442]
[1730235716371,8.60824023,178.4,178.29,2.78586385]
[1730235716684,8.60824023,178.34,178.29,14.19890408]
[1730235717272,8.60824023,178.32,178.29,2.78586385]
[1730235718168,8.60824023,178.31,178.29,2.78586385]
[1730235719388,2.8227742,178.33,178.29,2.78586385]
[1730235719389,11.43101443,178.33,178.29,2.78586385]
[1730235719580,8.60824023,178.3,178.29,2.78586385]
[1730235720080,8.60824023,178.3,178.23,2.8056]
[1730235720380,8.60824023,178.29,178.24,8.60824023]
[1730235720878,8.60824023,178.26,178.21,11.41424023]
[1730235721080,8.60824023,178.22,178.05,8.4257]
[1730235721286,13.34824023,178.22,178.17,8.60824023]
[1730235721681,13.34824023,178.22,178.11,3.3464]
[1730235721877,13.34824023,178.22,178.16,8.60824023]
[1730235722076,13.34824023,178.22,178.11,3.3464]
[1730235722278,13.34824023,178.22,178.08,4.74]
[1730235722472,8.60824023,178.17,178.11,8.60824023]
[1730235722674,13.34824023,178.17,178.11,8.60824023]
[1730235722882,13.34824023,178.17,178.05,238.5940737]
[1730235723080,8.60824023,178.15,178.05,238.5940737]
[1730235723278,8.60824023,178.15,178.1,11.0512983]
[1730235723482,8.60824023,178.15,178.1,13.8589983]
[1730235724075,8.60824023,178.15,178.1,2.44305807]
[1730235724280,8.60824023,178.15,178.1,11.0512983]
[1730235724476,21.03870505,178.17,178.1,2.44305807]
[1730235725497,18.23200505,178.17,178.1,2.44305807]
[1730235725793,13.49200505,178.15,178.1,2.44305807]
[1730235725989,21.33820988,178.24,178.1,2.44305807]
[1730235725990,13.49200505,178.17,178.1,2.44305807]
[1730235726188,4.74,178.16,178.1,5.25075807]
[1730235726387,4.74,178.16,178.1,2.44305807]
[1730235726588,18.23200505,178.15,178.1,2.44305807]
[1730235728789,13.49200505,178.13,178.1,2.44305807]
[1730235730489,16.29930505,178.13,178.1,2.44305807]
[1730235734600,1.8267,178.23,178.1,15.93506312]
[1730235734800,13.49200505,178.21,178.1,15.93506312]
[1730235735406,4.74,178.2,178.1,15.93506312]
[1730235735606,4.74,178.21,178.12,13.49200505]
[1730235735903,2.8062,178.2,178.14,2.8071]
[1730235737001,13.49200505,178.2,178.1,15.93506312]
[1730235737207,16.29860505,178.18,178.1,2.44305807]
[1730235737704,13.49200505,178.18,178.1,2.44305807]
[1730235738299,13.49200505,178.15,178.1,2.44305807]
[1730235738501,4.74,178.14,178.1,2.44305807]
[1730235738699,7.5473,178.14,178.1,2.44305807]
[1730235738895,13.49200505,178.13,178.1,2.44305807]
[1730235739601,16.29930505,178.13,178.1,2.44305807]
[1730235740496,13.49200505,178.13,178.02,18.23200505]
[1730235740696,13.49200505,178.13,177.98,3.5614]
[1730235740697,13.49200505,178.1,178.05,2.8084]
[1730235740907,18.23200505,178.1,178.05,2.8084]
[1730235741104,18.23200505,178.1,178.0,15.6593653]
[1730235741304,18.23200505,178.1,178.03,2.8089]
[1730235741305,2.808,178.09,178.03,2.8089]
[1730235741608,13.49200505,178.08,178.0,2.16736025]
[1730235741909,16.30020505,178.08,178.01,2.8091]
[1730235742202,13.49200505,178.06,178.0,2.16736025]
[1730235743397,2.8086,178.05,178.0,2.16736025]
[1730235743710,7.5486,178.05,178.0,2.16736025]
[1730235743903,13.49200505,178.04,178.0,2.16736025]
[1730235745003,13.49200505,178.06,178.0,2.16736025]
[1730235745202,4.74,178.08,178.0,2.16736025]
[1730235745808,7.5482,178.08,178.01,2.8091]
[1730235746495,2.8078,178.1,178.04,2.8087]
[1730235746809,7.5478,178.1,178.04,2.8087]
[1730235748910,4.74,178.1,178.07,2.8082]
[1730235749099,13.49200505,178.11,178.07,2.8082]
[1730235749901,18.18250505,178.14,178.04,13.49200505]
[1730235750905,15.37530505,178.14,178.04,13.49200505]
[1730235751110,2.807,178.15,178.04,13.49200505]
[1730235751614,2.807,178.15,178.09,2.8079]
[1730235756116,13.49200505,178.16,178.07,4.74]
[1730235756320,13.49200505,178.16,178.08,3.6952]
[1730235756516,2.8068,178.17,178.08,3.6952]
[1730235756819,2.8068,178.17,178.11,2.8075]
[1730235759714,5.6105,178.27,178.12,4.74]
[1730235759715,4.74,178.22,178.12,4.74]
[1730235759915,18.23200505,178.22,178.12,4.74]
[1730235760712,2.8065,178.19,178.13,2.8073]
[1730235761722,4.74,178.22,178.15,2.807]
[1730235762017,13.49200505,178.2,178.12,4.74]
[1730235762821,2.8064,178.19,178.13,2.8073]
[1730235763926,16.29830505,178.2,178.14,2.807]
[1730235764127,13.49200505,178.2,178.14,2.807]
[1730235765317,4.74,178.22,178.15,2.8069]
[1730235765518,13.49200505,178.2,178.15,2.8069]
[1730235765722,4.74,178.22,178.12,4.74]
[1730235765918,13.49200505,178.2,178.12,4.74]
[1730235767320,2.8064,178.19,178.14,2.8071]
[1730235768926,13.49200505,178.2,178.12,4.74]
[1730235769125,13.49200505,178.22,178.12,4.74]
[1730235769631,2.8062,178.21,178.15,2.807]
[1730235771918,13.49200505,178.22,178.12,4.74]
[1730235772116,13.49200505,178.2,178.13,4.72]
[1730235772828,13.49200505,178.2,178.1,13.49200505]
[1730235773033,13.49200505,178.2,178.11,4.72]
[1730235774427,13.49200505,178.2,178.13,2.8073]
[1730235775023,2.8065,178.19,178.13,2.8073]
[1730235775423,13.49200505,178.2,178.13,2.8073]
[1730235776028,2.8066,178.18,178.13,2.8073]
[1730235778539,11.43805881,178.18,178.13,11.43875881]
[1730235781131,8.63145881,178.18,178.13,11.43875881]
[1730235781929,11.43785881,178.19,178.14,8.63145881]
[1730235783528,8.63145881,178.17,178.12,2.8073]
[1730235783732,8.63145881,178.16,178.08,3.6952]
[1730235783926,8.63145881,178.15,178.1,4.72]
[1730235784126,11.43895881,178.13,178.08,11.43955881]
[1730235784837,11.43895881,178.13,178.08,8.63145881]
[1730235785534,8.63145881,178.1,178.03,3.6743]
[1730235785840,8.63145881,178.1,178.05,8.63145881]
[1730235786242,8.63145881,178.1,178.05,11.43995881]
[1730235787029,8.63145881,178.1,178.03,3.6743]
[1730235787030,1.7939,178.15,178.06,8.63145881]
[1730235787233,4.74,178.15,178.09,8.63145881]
[1730235787530,8.63145881,178.15,178.09,8.63145881]
[1730235787732,11.43845881,178.15,178.09,11.43935881]
[1730235788441,2.8072,178.14,178.08,2.808]
[1730235796635,2.807,178.15,178.1,2.8078]
[1730235796933,7.52638376,178.16,178.1,2.8078]
[1730235797136,7.52638376,178.16,178.06,13.4923135]
[1730235797336,4.72,178.21,178.12,13.4923135]
[1730235797852,14.20463221,178.21,178.12,13.4923135]
[1730235798143,2.8065,178.19,178.12,2.8073]
[1730235798338,13.4923135,178.18,178.09,4.72]
[1730235798637,13.4923135,178.18,178.09,7.5278]
[1730235798638,2.8071,178.15,178.09,7.5278]
[1730235799042,13.4923135,178.18,178.09,7.5278]
[1730235803537,2.8071,178.15,178.1,2.8078]
[1730235803846,9.48463221,178.17,178.1,2.8078]
[1730235804150,4.72,178.2,178.11,13.4923135]
[1730235804446,4.72,178.2,178.11,18.2123135]
[1730235804447,2.8065,178.19,178.11,18.2123135]
[1730235804641,4.72,178.2,178.13,2.8073]
[1730235806244,2.8066,178.18,178.13,2.8073]
[1730235808548,11.43837266,178.18,178.13,11.43907266]
[1730235811350,8.63177266,178.16,178.13,11.43907266]
[1730235814754,8.63177266,178.16,178.13,8.63177266]
[1730235820658,8.63177266,178.15,178.03,3.6743]
[1730235820858,8.63177266,178.12,178.07,8.63177266]
[1730235821255,8.63177266,178.11,178.06,11.44007266]
[1730235821457,8.63177266,178.09,178.03,6.5978]
[1730235821757,8.63177266,178.09,178.04,8.63177266]
[1730235822057,8.63177266,178.08,178.03,15.22957266]
[1730235822254,8.63177266,178.08,178.03,8.63177266]
[1730235822449,8.63177266,178.06,178.02,247.26462123]
[1730235822649,8.63177266,178.06,178.02,238.63284857]
[1730235822858,2.8088,178.04,178.0,2.16736025]
[1730235823068,8.63177266,178.01,178.0,2.16736025]
[1730235823957,2.8091,178.02,178.0,2.16736025]
[1730235824159,8.63177266,178.03,178.0,2.16736025]
[1730235824358,3.5464,178.06,178.01,8.63177266]
[1730235824559,10.42127266,178.06,178.01,8.63177266]
[1730235825356,10.42127266,178.06,178.0,2.16736025]
[1730235825357,1.7358,178.1,178.04,8.63177266]
[1730235825562,8.63177266,178.09,178.04,8.63177266]
[1730235826063,8.63177266,178.08,178.03,2.8088]
[1730235826365,8.63177266,178.09,178.04,11.44047266]
[1730235826560,6.4558,178.1,178.04,8.63177266]
[1730235826561,4.72,178.1,178.04,8.63177266]
[1730235826866,8.63177266,178.11,178.06,8.63177266]
[1730235827163,1.7895,178.14,178.08,8.63177266]
[1730235827164,8.63177266,178.12,178.08,8.63177266]
[1730235827571,8.63177266,178.12,178.08,11.43977266]
[1730235827868,4.7,178.13,178.08,11.43977266]
[1730235828260,13.22847266,178.14,178.08,11.43977266]
[1730235828576,4.5967,178.14,178.08,2.808]
[1730235831161,2.8072,178.14,178.08,2.808]
[1730235832157,2.8072,178.14,178.09,2.8079]
[1730235832670,1.7358,178.15,178.06,13.49394771]
[1730235832671,1.7358,178.15,178.11,2.8076]
[1730235832964,1.7358,178.15,178.07,13.49394771]
[1730235833165,1.7358,178.15,178.09,2.8079]
[1730235833361,1.7358,178.15,178.07,13.49394771]
[1730235833961,1.7358,178.15,178.1,2.8077]
[1730235841671,19.17797466,178.16,178.12,2.8074]
[1730235841672,16.37107466,178.16,178.12,2.8074]
[1730235841870,2.87712695,178.16,178.12,2.8074]
[1730235842066,2.87712695,178.16,178.07,13.49394771]
[1730235843279,2.87712695,178.16,178.11,2.8075]
[1730235844576,2.87712695,178.16,178.07,13.49394771]
[1730235845877,4.7,178.17,178.07,13.49394771]
[1730235846076,4.7,178.17,178.08,1.8757]
[1730235846681,2.8067,178.18,178.08,1.8757]
[1730235847172,2.8067,178.18,178.09,4.7]
[1730235847573,2.8067,178.17,178.12,2.8074]
[1730235848797,2.8067,178.17,178.09,4.7]
[1730235848981,2.8067,178.17,178.13,2.8073]
[1730235850468,8.63341549,178.16,178.14,2.8071]
[1730235851071,2.8064,178.19,178.16,2.8067]
[1730235851375,16.13981549,178.19,178.16,2.8067]
[1730235852979,11.43981549,178.19,178.16,2.8067]
[1730235853174,20.47596061,178.19,178.16,2.8067]
[1730235853479,8.63341549,178.17,178.16,2.8067]
[1730235854478,11.44011549,178.17,178.14,2.807]
[1730235854680,8.63341549,178.17,178.13,8.63341549]
[1730235854884,9.0384403,178.2,178.14,8.63341549]
[1730235855080,8.63341549,178.19,178.17,2.8066]
[1730235855480,8.63341549,178.2,178.14,8.63341549]
[1730235855685,20.47775579,178.22,178.19,2.8064]
[1730235855884,11.43931549,178.22,178.19,2.8064]
[1730235856089,9.03919793,178.23,178.2,8.63341549]
[1730235856387,8.63341549,178.24,178.22,2.8059]
[1730235857188,8.63341549,178.25,178.22,2.8059]
[1730235857489,9.03919793,178.29,178.17,4.7]
[1730235857490,17.67261342,178.29,178.23,8.63341549]
[1730235857690,17.67261342,178.29,178.24,8.63341549]
[1730235857986,17.67261342,178.29,178.25,2.8053]
[1730235858193,8.63341549,178.29,178.24,8.63341549]
[1730235858377,8.63341549,178.29,178.26,2.8052]
[1730235858893,15.17821549,178.3,178.24,8.63341549]
[1730235859187,13.33341549,178.3,178.26,8.63341549]
[1730235859383,8.63341549,178.33,178.27,8.63341549]
[1730235859589,8.63341549,178.33,178.22,4.7]
[1730235859590,8.63341549,178.33,178.29,11.43811549]
[1730235859783,19.54729033,178.36,178.3,8.63341549]
[1730235860086,8.63341549,178.36,178.31,2.8043]
[1730235860293,8.63341549,178.38,178.32,8.63341549]
[1730235860491,8.63341549,178.37,178.32,8.63341549]
[1730235860688,11.43701549,178.37,178.32,8.63341549]
[1730235861179,8.63341549,178.37,178.32,8.63341549]
[1730235861991,8.63341549,178.35,178.27,4.7]
[1730235862184,8.63341549,178.35,178.28,8.63341549]
[1730235862387,8.63341549,178.35,178.3,8.63341549]
[1730235863582,8.63341549,178.35,178.31,8.63341549]
[1730235864190,11.43731549,178.35,178.31,8.63341549]
[1730235865199,11.43731549,178.35,178.3,8.63341549]
[1730235867889,11.43711549,178.36,178.31,8.63341549]
[1730235868094,9.02377862,178.39,178.32,8.63341549]
[1730235868095,8.63341549,178.38,178.32,8.63341549]
[1730235868695,2.8036,178.37,178.32,8.63341549]
[1730235868898,9.02377862,178.39,178.32,4.7]
[1730235869099,9.02377862,178.39,178.37,8.63341549]
[1730235869299,9.02377862,178.39,178.37,11.43691549]
[1730235869697,9.02377862,178.39,178.38,8.63341549]
[1730235870208,2.8024,178.45,178.38,8.63341549]
[1730235870397,13.46589891,178.45,178.38,2.8034]
[1730235871095,13.46589891,178.45,178.37,7.5035]
[1730235871619,13.46589891,178.45,178.37,4.7]
[1730235872322,2.8029,178.42,178.37,7.5035]
[1730235872520,2.79722656,178.46,178.37,4.7]
[1730235872715,2.79722656,178.46,178.38,13.46589891]
[1730235872914,5.4837,178.47,178.38,13.46589891]
[1730235873117,6.47752542,178.47,178.38,13.46589891]
[1730235873326,2.8021,178.47,178.41,2.8029]
[1730235873522,4.7,178.49,178.41,2.8029]
[1730235873712,4.7,178.49,178.38,13.46589891]
[1730235873713,2.79089059,178.48,178.38,13.46589891]
[1730235874223,2.8024,178.45,178.39,2.8032]
[1730235874406,2.8024,178.45,178.38,13.46589891]
[1730235874614,2.79089059,178.48,178.4,13.46589891]
[1730235874814,2.802,178.47,178.41,2.8028]
[1730235875918,4.7,178.49,178.43,2.8025]
[1730235875919,2.8018,178.49,178.43,2.8025]
[1730235876227,4.7,178.5,178.42,13.46589891]
[1730235876528,7.47852026,178.5,178.43,2.8026]
[1730235876818,7.47852026,178.5,178.42,18.16589891]
[1730235877022,2.77852026,178.5,178.42,18.16589891]
[1730235877219,2.8016,178.5,178.44,2.8023]
[1730235877417,18.16589891,178.53,178.42,18.16589891]
[1730235878025,20.92473298,178.53,178.42,18.16589891]
[1730235878522,2.8015,178.5,178.44,16.26819891]
[1730235878722,7.45883407,178.53,178.44,13.46589891]
[1730235879328,2.8016,178.5,178.44,16.26829891]
[1730235879923,2.8014,178.51,178.45,2.8022]
[1730235880620,2.83760984,178.53,178.44,13.46589891]
[1730235880926,13.46589891,178.51,178.41,1.7493]
[1730235881128,16.23133584,178.51,178.41,1.7493]
[1730235881314,4.68,178.5,178.41,1.7493]
[1730235881519,2.8022,178.46,178.41,1.7493]
[1730235881916,4.68,178.5,178.41,1.7493]
[1730235882618,2.8021,178.47,178.41,4.5522]
[1730235886635,2.8021,178.47,178.42,16.26859891]
[1730235886827,4.68,178.5,178.42,13.46589891]
[1730235888032,2.8021,178.47,178.42,13.46589891]
[1730235888229,4.68,178.5,178.42,13.46589891]
[1730235888733,2.8021,178.47,178.42,13.46589891]
[1730235889844,4.68,178.5,178.42,13.46589891]
[1730235890047,2.8025,178.44,178.39,16.26899891]
[1730235890239,2.8025,178.44,178.39,20.94899891]
[1730235890443,2.8023,178.45,178.39,4.68]
[1730235890645,13.46589891,178.47,178.39,4.68]
[1730235891032,13.46589891,178.47,178.37,13.46589891]
[1730235891033,2.803,178.41,178.37,18.14589891]
[1730235892340,2.8032,178.4,178.37,4.68]
[1730235892539,2.8032,178.4,178.35,13.46589891]
[1730235892743,2.76661803,178.42,178.35,13.46589891]
[1730235892946,2.803,178.41,178.35,16.26959891]
[1730235894237,2.84793966,178.42,178.35,16.26959891]
[1730235894440,2.8031,178.4,178.35,16.26959891]
[1730235898548,2.8031,178.4,178.36,8.62035695]
[1730235898752,8.62035695,178.41,178.33,1.727]
[1730235899050,8.62035695,178.38,178.33,10.34735695]
[1730235899538,2.8036,178.37,178.33,10.34735695]
[1730235900348,2.8045,178.31,178.26,4.68]
[1730235900543,8.62035695,178.33,178.26,8.62035695]
[1730235900743,2.74743524,178.34,178.3,8.62035695]
[1730235901053,7.4839,178.35,178.31,8.62035695]
[1730235902052,2.804,178.34,178.31,8.62035695]
[1730235902442,13.47758429,178.38,178.28,13.47758429]
[1730235902646,4.68,178.37,178.28,13.47758429]
[1730235903048,4.68,178.37,178.28,16.28238429]
[1730235903745,4.68,178.37,178.25,13.47758429]
[1730235903746,13.47758429,178.36,178.25,13.47758429]
[1730235903952,2.8043,178.32,178.27,2.8051]
[1730235904250,13.47758429,178.36,178.27,2.8051]
[1730235904954,2.8042,178.33,178.27,2.8051]
[1730235906753,2.79626108,178.39,178.32,13.47758429]
[1730235906957,4.68,178.42,178.32,13.47758429]
[1730235907348,2.8034,178.39,178.33,2.804]
[1730235907857,9.31412867,178.41,178.33,2.804]
[1730235908548,2.8033,178.39,178.33,2.804]
[1730235908744,9.31412867,178.41,178.33,2.804]
[1730235909350,22.79171296,178.41,178.33,2.804]
[1730235909550,13.47758429,178.39,178.31,4.6012]
[1730235909751,13.47758429,178.39,178.3,4.68]
[1730235909953,1.8643,178.38,178.3,4.68]
[1730235910152,1.8643,178.38,178.3,2.8045]
[1730235910353,1.8643,178.38,178.28,13.47758429]
[1730235910758,2.8037,178.36,178.31,2.8044]
[1730235910948,1.8643,178.38,178.31,13.47758429]
[1730235911555,4.6678,178.38,178.33,2.804]
[1730235911763,1.8643,178.38,178.33,2.804]
[1730235912166,2.8036,178.37,178.33,2.804]
[1730235913252,1.8643,178.38,178.33,2.804]
[1730235913962,2.8036,178.37,178.33,2.804]
[1730235914167,1.8643,178.38,178.33,2.8041]
[1730235914857,2.8036,178.37,178.33,2.8041]
[1730235915561,1.8643,178.38,178.31,13.47758429]
[1730235915757,1.8643,178.38,178.31,2.8043]
[1730235916349,2.8039,178.35,178.31,2.8043]
[1730235916550,2.8039,178.35,178.32,2.8043]
[1730235917159,1.8643,178.38,178.29,13.47758429]
[1730235917358,1.8643,178.38,178.34,2.804]
[1730235918163,2.8036,178.37,178.31,13.47758429]
[1730235918357,2.8036,178.37,178.33,2.8041]
[1730235918665,1.8643,178.38,178.33,2.8041]
[1730235918964,2.8038,178.36,178.32,2.8043]
[1730235919563,2.8039,178.35,178.31,2.8044]
[1730235921568,15.34188429,178.38,178.3,2.8046]
[1730235921762,15.34188429,178.38,178.28,18.15758429]
[1730235922467,2.8036,178.37,178.32,2.8043]
[1730235923863,1.8643,178.38,178.32,2.8043]
[1730235924057,2.8037,178.36,178.32,2.8043]
[1730235924561,18.11171296,178.41,178.28,4.68]
[1730235924562,2.803,178.41,178.37,2.8034]
[1730235924967,16.97598429,178.46,178.39,2.8032]
[1730235924968,4.68,178.44,178.39,2.8032]
[1730235925162,2.8026,178.43,178.39,2.8032]
[1730235926372,2.8028,178.42,178.39,2.8032]
[1730235927771,4.68,178.45,178.36,13.47758429]
[1730235928561,2.8029,178.42,178.38,2.8033]
[1730235929175,2.8029,178.42,178.37,2.8034]
[1730235929981,2.803,178.41,178.36,2.8037]
[1730235931375,2.803,178.41,178.34,1.832]
[1730235931578,2.8028,178.42,178.35,13.47758429]
[1730235932479,14.16372588,178.42,178.37,11.4228585]
[1730235933376,2.8028,178.42,178.39,8.6193585]
[1730235934589,2.8024,178.45,178.41,2.8028]
[1730235934873,3.4984,178.46,178.36,13.4644569]
[1730235935694,2.8026,178.44,178.39,2.8032]
[1730235935995,2.8026,178.44,178.36,13.4644569]
[1730235936287,3.4984,178.46,178.4,2.803]
[1730235936497,2.8026,178.43,178.4,2.803]
[1730235936878,2.8026,178.43,178.39,2.8032]
[1730235939288,2.8026,178.43,178.36,13.4644569]
[1730235939289,3.4984,178.46,178.36,13.4644569]
[1730235939478,3.4984,178.46,178.34,1.832]
[1730235939479,2.8029,178.41,178.34,15.2964569]
[1730235939879,2.8029,178.41,178.36,2.8037]
[1730235940885,2.8029,178.41,178.34,15.2964569]
[1730235941082,13.4644569,178.45,178.37,16.2679569]
[1730235941083,2.8027,178.43,178.37,16.2679569]
[1730235941284,13.4644569,178.45,178.37,16.2679569]
[1730235941496,22.48987928,178.45,178.37,16.2679569]
[1730235941790,13.4644569,178.45,178.37,16.2679569]
[1730235942290,2.8028,178.42,178.37,16.2679569]
[1730235943287,9.02557791,178.45,178.4,2.803]
[1730235943486,3.4984,178.46,178.4,2.803]
[1730235943688,13.70557791,178.47,178.43,2.8025]
[1730235943689,9.02557791,178.47,178.43,2.8025]
[1730235943891,15.50959938,178.5,178.41,13.4644569]
[1730235944281,2.8021,178.47,178.43,2.8025]
[1730235945786,2.8021,178.47,178.44,2.8024]
[1730235946590,4.66,178.5,178.41,13.4644569]
[1730235946793,4.66,178.5,178.38,6.4264]
[1730235946794,2.8017,178.49,178.43,13.4644569]
[1730235947383,2.8017,178.49,178.45,2.8022]
[1730235947587,2.76543693,178.51,178.43,13.4644569]
[1730235947588,2.8015,178.5,178.43,13.4644569]
[1730235947989,2.8015,178.5,178.45,2.8023]
[1730235948190,2.8015,178.5,178.43,13.4644569]
[1730235948191,2.83027324,178.52,178.43,13.4644569]
[1730235948499,8.3324,178.53,178.46,2.802]
[1730235948892,2.8014,178.51,178.43,13.4644569]
[1730235949087,2.8014,178.51,178.42,4.66]
[1730235949088,4.66,178.53,178.46,13.4644569]
[1730235949404,2.82735908,178.55,178.46,13.4644569]
[1730235949606,4.66,178.56,178.46,18.1244569]
[1730235949795,2.801,178.53,178.47,2.8019]
[1730235950300,2.801,178.53,178.46,18.1244569]
[1730235950505,2.86912752,178.54,178.48,2.8018]
[1730235950686,2.8012,178.52,178.48,2.8018]
[1730235950894,4.66,178.57,178.49,13.4644569]
[1730235951104,2.8006,178.56,178.51,2.8013]
[1730235951403,2.86127841,178.55,178.51,2.8013]
[1730235951795,2.86127841,178.55,178.51,16.2657569]
[1730235952301,2.8006,178.56,178.51,16.2657569]
[1730235952889,18.8011569,178.62,178.51,13.4644569]
[1730235953196,2.8004,178.58,178.53,2.801]
[1730235954098,2.8004,178.58,178.53,16.2654569]
[1730235954488,9.00856797,178.61,178.53,13.4644569]
[1730235954692,2.8002,178.59,178.54,2.8008]
[1730235954894,9.00856797,178.61,178.54,2.8008]
[1730235955100,2.8002,178.58,178.53,16.2654569]
[1730235955603,9.00856797,178.61,178.53,13.4644569]
[1730235955801,9.00856797,178.61,178.54,2.8008]
[1730235956099,9.00856797,178.61,178.53,13.4644569]
[1730235956504,2.8002,178.58,178.55,8.61239919]
[1730235956695,9.00856797,178.61,178.56,8.61239919]
[1730235956894,13.27239919,178.62,178.57,8.61239919]
[1730235957090,2.7999,178.6,178.57,8.61239919]
[1730235957907,2.7996,178.63,178.59,8.61239919]
[1730235958200,2.84070026,178.65,178.6,8.61239919]
[1730235958399,5.63990026,178.65,178.61,2.7997]
[1730235958605,2.84070026,178.65,178.59,13.4467569]
[1730235959103,2.7994,178.64,178.59,13.4467569]
[1730235959301,8.97771516,178.68,178.57,4.66]
[1730235959302,8.97771516,178.68,178.61,13.4467569]